[Event "Titled Tuesday Blitz April 18 Early 2023"]
[White "Harshad S"]
[Black "Caruana, Fabiano"]
[WhiteFideId "46616551"]
[BlackFideId "2020009"]
[WhiteElo "2163"]
[BlackElo "2837"]
[Result "0-1"]
[Round "09"]
[TimeControl "180+2"]
[Date "2023.04.18"]
[WhiteClock "0:00:52"]
[BlackClock "0:01:24"]

1. e4 {[%clk 0:03:00]}  e5 {[%clk 0:02:59]} 2. Nf3 {[%clk 0:03:01]}  Nc6 {[%clk 0:03:00]} 3. Bb5 {[%clk 0:03:01]}  a6 {[%clk 0:03:00]} 4. Ba4 {[%clk 0:03:02]}  Nf6 {[%clk 0:03:01]} 5. d3 {[%clk 0:03:02]}  Bc5 {[%clk 0:03:00]} 6. Nc3 {[%clk 0:03:02]}  d6 {[%clk 0:02:59]} 7. h3 {[%clk 0:03:01]}  h6 {[%clk 0:02:58]} 8. O-O {[%clk 0:02:59]}  O-O {[%clk 0:02:57]} 9. Be3 {[%clk 0:02:58]}  Bxe3 {[%clk 0:02:51]} 10. fxe3 {[%clk 0:02:59]}  Ne7 {[%clk 0:02:52]} 11. Bb3 {[%clk 0:02:57]}  Ng6 {[%clk 0:02:51]} 12. Qe2 {[%clk 0:02:57]}  c6 {[%clk 0:02:49]} 13. Kh2 {[%clk 0:02:56]}  Re8 {[%clk 0:02:47]} 14. a4 {[%clk 0:02:56]}  d5 {[%clk 0:02:41]} 15. Qf2 {[%clk 0:02:45]}  Be6 {[%clk 0:02:40]} 16. exd5 {[%clk 0:02:37]}  cxd5 {[%clk 0:02:39]} 17. d4 {[%clk 0:02:36]}  e4 {[%clk 0:02:36]} 18. Nd2 {[%clk 0:02:31]}  Rc8 {[%clk 0:02:31]} 19. a5 {[%clk 0:02:24]}  h5 {[%clk 0:02:24]} 20. Ne2 {[%clk 0:02:22]}  h4 {[%clk 0:02:22]} 21. Rfc1 {[%clk 0:02:19]}  Qd6+ {[%clk 0:02:13]} 22. Kh1 {[%clk 0:02:15]}  Rc7 {[%clk 0:02:03]} 23. c3 {[%clk 0:02:14]}  Rec8 {[%clk 0:01:56]} 24. Ba4 {[%clk 0:02:09]}  Nh5 {[%clk 0:01:53]} 25. Nb3 {[%clk 0:02:06]}  Ng3+ {[%clk 0:01:41]} 26. Nxg3 {[%clk 0:01:57]}  hxg3 {[%clk 0:01:42]} 27. Qe2 {[%clk 0:01:58]}  Nh4 {[%clk 0:01:42]} 28. Nc5 {[%clk 0:01:56]}  Bxh3 {[%clk 0:01:38]} 29. Qh5 {[%clk 0:01:24]}  Bxg2+ {[%clk 0:01:30]} 30. Kg1 {[%clk 0:01:23]}  Qf6 {[%clk 0:01:29]} 31. Rc2 {[%clk 0:01:08]}  Bh3 {[%clk 0:01:29]} 32. Qxd5 {[%clk 0:00:58]}  Nf3+ {[%clk 0:01:27]} 33. Kh1 {[%clk 0:00:58]}  Qh6 {[%clk 0:01:27]} 34. Qxe4 {[%clk 0:00:52]}  Bf1+ {[%clk 0:01:24]} 0-1


[Site "https://www.chess.com"]

[Event "Titled Tuesday Blitz April 18 Early 2023"]
[White "Grigoriants, Sergey"]
[Black "Berezin, Viktor"]
[WhiteFideId "4130804"]
[BlackFideId "14107872"]
[WhiteElo "2502"]
[BlackElo "2310"]
[Result "1-0"]
[Round "09"]
[TimeControl "180+2"]
[Date "2023.04.18"]
[WhiteClock "0:00:14"]
[BlackClock "0:00:12"]

1. d4 {[%clk 0:02:58]}  Nf6 {[%clk 0:02:57]} 2. c4 {[%clk 0:02:58]}  g6 {[%clk 0:02:56]} 3. f3 {[%clk 0:02:58]}  Bg7 {[%clk 0:02:56]} 4. e4 {[%clk 0:02:58]}  O-O {[%clk 0:02:56]} 5. Nc3 {[%clk 0:02:59]}  d6 {[%clk 0:02:57]} 6. Nge2 {[%clk 0:02:59]}  b6 {[%clk 0:02:55]} 7. Be3 {[%clk 0:02:59]}  c5 {[%clk 0:02:55]} 8. Qd2 {[%clk 0:02:42]}  Nc6 {[%clk 0:02:54]} 9. Rc1 {[%clk 0:02:36]}  cxd4 {[%clk 0:02:44]} 10. Nxd4 {[%clk 0:02:36]}  Bb7 {[%clk 0:02:37]} 11. Be2 {[%clk 0:02:36]}  Rc8 {[%clk 0:02:34]} 12. O-O {[%clk 0:02:36]}  Nd7 {[%clk 0:02:26]} 13. Rfd1 {[%clk 0:02:29]}  Nc5 {[%clk 0:02:15]} 14. Nc2 {[%clk 0:02:09]}  Ne6 {[%clk 0:02:13]} 15. b3 {[%clk 0:02:05]}  Qc7 {[%clk 0:01:44]} 16. Nd5 {[%clk 0:02:02]}  Qd7 {[%clk 0:01:38]} 17. Re1 {[%clk 0:01:56]}  Rfe8 {[%clk 0:01:32]} 18. Rcd1 {[%clk 0:01:56]}  Nc5 {[%clk 0:01:23]} 19. Bh6 {[%clk 0:01:48]}  Bh8 {[%clk 0:01:22]} 20. Bf1 {[%clk 0:01:47]}  e6 {[%clk 0:01:04]} 21. Nde3 {[%clk 0:01:34]}  Rcd8 {[%clk 0:01:01]} 22. Bg5 {[%clk 0:01:24]}  f6 {[%clk 0:01:01]} 23. Bh4 {[%clk 0:01:24]}  Qf7 {[%clk 0:00:51]} 24. Ng4 {[%clk 0:01:21]}  Bg7 {[%clk 0:00:50]} 25. Nh6+ {[%clk 0:01:17]}  Bxh6 {[%clk 0:00:50]} 26. Qxh6 {[%clk 0:01:18]}  g5 {[%clk 0:00:46]} 27. Bf2 {[%clk 0:01:13]}  Ne5 {[%clk 0:00:42]} 28. h4 {[%clk 0:01:04]}  g4 {[%clk 0:00:36]} 29. f4 {[%clk 0:00:54]}  Qg6 {[%clk 0:00:35]} 30. Qxg6+ {[%clk 0:00:47]}  Nxg6 {[%clk 0:00:36]} 31. f5 {[%clk 0:00:39]}  Ne5 {[%clk 0:00:30]} 32. Nd4 {[%clk 0:00:35]}  Bxe4 {[%clk 0:00:22]} 33. b4 {[%clk 0:00:19]}  exf5 {[%clk 0:00:22]} 34. bxc5 {[%clk 0:00:19]}  dxc5 {[%clk 0:00:23]} 35. Nb5 {[%clk 0:00:17]}  Bc2 {[%clk 0:00:15]} 36. Rxd8 {[%clk 0:00:16]}  Rxd8 {[%clk 0:00:15]} 37. Bg3 {[%clk 0:00:17]}  Ng6 {[%clk 0:00:14]} 38. Bc7 {[%clk 0:00:16]}  Rd7 {[%clk 0:00:13]} 39. h5 {[%clk 0:00:16]}  Nh4 {[%clk 0:00:13]} 40. Bg3 {[%clk 0:00:15]}  Nf3+ {[%clk 0:00:10]} 41. gxf3 {[%clk 0:00:15]}  gxf3 {[%clk 0:00:11]} 42. Kf2 {[%clk 0:00:16]}  Be4 {[%clk 0:00:11]} 43. Bf4 {[%clk 0:00:14]}  Kf7 {[%clk 0:00:11]} 44. Nd6+ {[%clk 0:00:14]}  Ke6 {[%clk 0:00:10]} 45. Nxe4 {[%clk 0:00:13]}  fxe4 {[%clk 0:00:11]} 46. Rxe4+ {[%clk 0:00:14]}  Kf7 {[%clk 0:00:12]} 47. Kxf3 {[%clk 0:00:14]} 1-0


[Site "https://www.chess.com"]

[Event "Titled Tuesday Blitz April 18 Early 2023"]
[White "Drygalov, Andrey"]
[Black "Lamaze, Simon"]
[WhiteFideId "24171735"]
[BlackFideId "36069264"]
[WhiteElo "2466"]
[BlackElo "2272"]
[Result "1-0"]
[Round "09"]
[TimeControl "180+2"]
[Date "2023.04.18"]
[WhiteClock "0:01:03"]
[BlackClock "0:00:41"]

1. e4 {[%clk 0:03:00]}  c5 {[%clk 0:03:00]} 2. Nf3 {[%clk 0:03:00]}  e6 {[%clk 0:02:54]} 3. d4 {[%clk 0:02:59]}  cxd4 {[%clk 0:02:55]} 4. Nxd4 {[%clk 0:02:58]}  Nc6 {[%clk 0:02:56]} 5. Nc3 {[%clk 0:02:58]}  Qc7 {[%clk 0:02:54]} 6. Be2 {[%clk 0:02:58]}  Nf6 {[%clk 0:02:54]} 7. Ndb5 {[%clk 0:02:58]}  Qb8 {[%clk 0:02:54]} 8. f4 {[%clk 0:02:58]}  d6 {[%clk 0:02:50]} 9. Be3 {[%clk 0:02:52]}  a6 {[%clk 0:02:50]} 10. Nd4 {[%clk 0:02:52]}  Bd7 {[%clk 0:02:50]} 11. g4 {[%clk 0:02:42]}  Nxd4 {[%clk 0:02:48]} 12. Qxd4 {[%clk 0:02:42]}  e5 {[%clk 0:02:48]} 13. Qd1 {[%clk 0:02:38]}  exf4 {[%clk 0:02:47]} 14. Bxf4 {[%clk 0:02:38]}  Be6 {[%clk 0:02:41]} 15. g5 {[%clk 0:02:35]}  Nd7 {[%clk 0:02:41]} 16. Qd4 {[%clk 0:02:36]}  Ne5 {[%clk 0:02:40]} 17. O-O-O {[%clk 0:02:35]}  Be7 {[%clk 0:02:35]} 18. Kb1 {[%clk 0:02:35]}  O-O {[%clk 0:02:35]} 19. h4 {[%clk 0:02:34]}  Qc7 {[%clk 0:02:27]} 20. Nd5 {[%clk 0:02:32]}  Bxd5 {[%clk 0:02:23]} 21. Qxd5 {[%clk 0:02:33]}  Rac8 {[%clk 0:02:24]} 22. c3 {[%clk 0:02:33]}  Qc6 {[%clk 0:02:23]} 23. h5 {[%clk 0:02:31]}  Qxd5 {[%clk 0:02:23]} 24. Rxd5 {[%clk 0:02:31]}  f5 {[%clk 0:02:15]} 25. Bxe5 {[%clk 0:02:13]}  dxe5 {[%clk 0:01:48]} 26. Rxe5 {[%clk 0:02:13]}  Bxg5 {[%clk 0:01:48]} 27. exf5 {[%clk 0:02:12]}  Bf6 {[%clk 0:01:44]} 28. Rd5 {[%clk 0:02:12]}  Rc7 {[%clk 0:01:43]} 29. Bf3 {[%clk 0:02:08]}  Re8 {[%clk 0:01:30]} 30. Rd3 {[%clk 0:02:07]}  Kf8 {[%clk 0:01:14]} 31. Bd5 {[%clk 0:02:06]}  Re2 {[%clk 0:01:12]} 32. h6 {[%clk 0:01:53]}  b5 {[%clk 0:01:05]} 33. a3 {[%clk 0:01:43]}  a5 {[%clk 0:01:02]} 34. hxg7+ {[%clk 0:01:38]}  Rxg7 {[%clk 0:01:02]} 35. Rh6 {[%clk 0:01:39]}  Ke7 {[%clk 0:01:00]} 36. Bc6 {[%clk 0:01:17]}  Be5 {[%clk 0:00:41]} 37. Re6+ {[%clk 0:01:15]}  Kf8 {[%clk 0:00:41]} 38. Rd8+ {[%clk 0:01:03]}  Kf7 {[%clk 0:00:40]} 39. Be8+ {[%clk 0:01:04]}  Kf8 {[%clk 0:00:41]} 40. Bg6# {[%clk 0:01:03]} 1-0


[Site "https://www.chess.com"]

[Event "Titled Tuesday Blitz April 18 Early 2023"]
[White "Kim, Sergey"]
[Black "Kukhmazov, Arsen"]
[WhiteFideId "13700570"]
[BlackFideId "24108260"]
[WhiteElo "2618"]
[BlackElo "2396"]
[Result "1/2-1/2"]
[Round "09"]
[TimeControl "180+2"]
[Date "2023.04.18"]
[WhiteClock "0:01:14"]
[BlackClock "0:01:14"]

1. d4 {[%clk 0:03:00]}  d5 {[%clk 0:02:59]} 2. c4 {[%clk 0:03:01]}  c6 {[%clk 0:03:00]} 3. Nf3 {[%clk 0:03:00]}  Nf6 {[%clk 0:02:59]} 4. Qc2 {[%clk 0:03:00]}  g6 {[%clk 0:02:59]} 5. e3 {[%clk 0:02:59]}  Bg7 {[%clk 0:02:59]} 6. Bd3 {[%clk 0:02:59]}  O-O {[%clk 0:02:59]} 7. O-O {[%clk 0:02:58]}  Nbd7 {[%clk 0:02:49]} 8. Nbd2 {[%clk 0:02:58]}  Re8 {[%clk 0:02:46]} 9. b3 {[%clk 0:02:56]}  b6 {[%clk 0:02:43]} 10. Bb2 {[%clk 0:02:56]}  Bb7 {[%clk 0:02:43]} 11. b4 {[%clk 0:02:54]}  c5 {[%clk 0:02:33]} 12. dxc5 {[%clk 0:02:47]}  bxc5 {[%clk 0:02:33]} 13. b5 {[%clk 0:02:46]}  e5 {[%clk 0:02:30]} 14. cxd5 {[%clk 0:02:45]}  Nxd5 {[%clk 0:02:30]} 15. a3 {[%clk 0:02:41]}  Qe7 {[%clk 0:02:24]} 16. Rfe1 {[%clk 0:02:03]}  Rac8 {[%clk 0:02:20]} 17. e4 {[%clk 0:02:00]}  Nf4 {[%clk 0:02:18]} 18. Bf1 {[%clk 0:01:59]}  Ne6 {[%clk 0:02:18]} 19. Qa4 {[%clk 0:01:42]}  Nd4 {[%clk 0:01:53]} 20. Qxa7 {[%clk 0:01:37]}  Rb8 {[%clk 0:01:31]} 21. Nxd4 {[%clk 0:01:29]}  cxd4 {[%clk 0:01:24]} 22. a4 {[%clk 0:01:23]}  Qb4 {[%clk 0:01:23]} 23. Nc4 {[%clk 0:01:22]}  Qc5 {[%clk 0:01:14]} 24. Qxc5 {[%clk 0:01:14]} 1/2-1/2


[Site "https://www.chess.com"]

[Event "Titled Tuesday Blitz April 18 Early 2023"]
[White "Samsonkin, Artiom"]
[Black "Sokolovsky, Yahli"]
[WhiteFideId "13503111"]
[BlackFideId "2820242"]
[WhiteElo "2524"]
[BlackElo "2316"]
[Result "1-0"]
[Round "09"]
[TimeControl "180+2"]
[Date "2023.04.18"]
[WhiteClock "0:00:12"]
[BlackClock "0:01:34"]

1. e4 {[%clk 0:03:00]}  d6 {[%clk 0:03:00]} 2. d4 {[%clk 0:02:55]}  Nf6 {[%clk 0:03:01]} 3. Nc3 {[%clk 0:02:54]}  g6 {[%clk 0:03:02]} 4. f4 {[%clk 0:02:50]}  Bg7 {[%clk 0:03:02]} 5. Nf3 {[%clk 0:02:50]}  O-O {[%clk 0:03:03]} 6. Bd3 {[%clk 0:02:51]}  c5 {[%clk 0:03:02]} 7. dxc5 {[%clk 0:02:52]}  dxc5 {[%clk 0:03:00]} 8. e5 {[%clk 0:02:52]}  Nd5 {[%clk 0:02:56]} 9. Nxd5 {[%clk 0:02:53]}  Qxd5 {[%clk 0:02:57]} 10. Qe2 {[%clk 0:02:53]}  Bg4 {[%clk 0:02:46]} 11. Be4 {[%clk 0:02:50]}  Qd7 {[%clk 0:02:47]} 12. h3 {[%clk 0:02:42]}  Bf5 {[%clk 0:02:39]} 13. Bxf5 {[%clk 0:02:23]}  Qxf5 {[%clk 0:02:37]} 14. O-O {[%clk 0:02:24]}  Nc6 {[%clk 0:02:37]} 15. Be3 {[%clk 0:02:23]}  b6 {[%clk 0:02:33]} 16. c3 {[%clk 0:02:24]}  Rad8 {[%clk 0:02:32]} 17. Rad1 {[%clk 0:02:12]}  Qe4 {[%clk 0:02:25]} 18. Ng5 {[%clk 0:02:07]}  Qf5 {[%clk 0:02:21]} 19. Qb5 {[%clk 0:01:25]}  Qc8 {[%clk 0:02:17]} 20. Qc4 {[%clk 0:01:12]}  Rxd1 {[%clk 0:02:08]} 21. Rxd1 {[%clk 0:01:11]}  h6 {[%clk 0:02:09]} 22. Nf3 {[%clk 0:00:57]}  Rd8 {[%clk 0:02:09]} 23. Rxd8+ {[%clk 0:00:49]}  Qxd8 {[%clk 0:02:06]} 24. e6 {[%clk 0:00:49]}  f5 {[%clk 0:02:06]} 25. Kh2 {[%clk 0:00:44]}  Qd6 {[%clk 0:02:06]} 26. Nh4 {[%clk 0:00:23]}  Kh7 {[%clk 0:02:06]} 27. g4 {[%clk 0:00:19]}  fxg4 {[%clk 0:01:58]} 28. Qe4 {[%clk 0:00:19]}  Nd8 {[%clk 0:01:38]} 29. Qxg6+ {[%clk 0:00:18]}  Kg8 {[%clk 0:01:39]} 30. Nf5 {[%clk 0:00:14]}  g3+ {[%clk 0:01:34]} 31. Kxg3 {[%clk 0:00:12]} 1-0


[Site "https://www.chess.com"]

[Event "Titled Tuesday Blitz April 18 Early 2023"]
[White "Bodnaruk, Anastasia"]
[Black "Mahdavi, Reza"]
[WhiteFideId "4181751"]
[BlackFideId "12595926"]
[WhiteElo "2310"]
[BlackElo "2357"]
[Result "1/2-1/2"]
[Round "09"]
[TimeControl "180+2"]
[Date "2023.04.18"]
[WhiteClock "0:00:16"]
[BlackClock "0:00:25"]

1. e4 {[%clk 0:03:00]}  c5 {[%clk 0:02:59]} 2. Nc3 {[%clk 0:03:00]}  e6 {[%clk 0:03:00]} 3. Nf3 {[%clk 0:02:57]}  a6 {[%clk 0:03:01]} 4. d4 {[%clk 0:02:56]}  cxd4 {[%clk 0:03:01]} 5. Nxd4 {[%clk 0:02:56]}  Nc6 {[%clk 0:03:02]} 6. g3 {[%clk 0:02:56]}  Qc7 {[%clk 0:03:03]} 7. Bg2 {[%clk 0:02:55]}  Nf6 {[%clk 0:03:03]} 8. O-O {[%clk 0:02:54]}  Nxd4 {[%clk 0:03:04]} 9. Qxd4 {[%clk 0:02:54]}  Bc5 {[%clk 0:03:05]} 10. Bf4 {[%clk 0:02:53]}  d6 {[%clk 0:03:06]} 11. Qd2 {[%clk 0:02:52]}  h6 {[%clk 0:03:06]} 12. Na4 {[%clk 0:02:39]}  e5 {[%clk 0:03:02]} 13. Nxc5 {[%clk 0:02:38]}  dxc5 {[%clk 0:02:52]} 14. Be3 {[%clk 0:02:37]}  Be6 {[%clk 0:02:44]} 15. h3 {[%clk 0:02:30]}  Rd8 {[%clk 0:02:37]} 16. Qc3 {[%clk 0:02:30]}  Nd7 {[%clk 0:02:33]} 17. f4 {[%clk 0:02:29]}  f6 {[%clk 0:02:33]} 18. b4 {[%clk 0:02:06]}  c4 {[%clk 0:02:26]} 19. a4 {[%clk 0:02:05]}  O-O {[%clk 0:02:23]} 20. a5 {[%clk 0:02:04]}  Rfe8 {[%clk 0:02:21]} 21. Rab1 {[%clk 0:01:58]}  Qc6 {[%clk 0:02:20]} 22. b5 {[%clk 0:01:48]}  axb5 {[%clk 0:02:20]} 23. Qb4 {[%clk 0:01:49]}  c3 {[%clk 0:02:17]} 24. Rfd1 {[%clk 0:01:41]}  Ba2 {[%clk 0:02:00]} 25. Rd6 {[%clk 0:01:25]}  Qc8 {[%clk 0:01:36]} 26. Rbd1 {[%clk 0:01:24]}  exf4 {[%clk 0:01:28]} 27. gxf4 {[%clk 0:01:20]}  Nf8 {[%clk 0:01:27]} 28. Rxd8 {[%clk 0:01:00]}  Rxd8 {[%clk 0:01:28]} 29. Rxd8 {[%clk 0:01:01]}  Qxd8 {[%clk 0:01:29]} 30. Qxc3 {[%clk 0:01:01]}  Bc4 {[%clk 0:01:27]} 31. e5 {[%clk 0:00:55]}  fxe5 {[%clk 0:01:25]} 32. fxe5 {[%clk 0:00:55]}  Qe7 {[%clk 0:01:19]} 33. Qd4 {[%clk 0:00:43]}  Qa3 {[%clk 0:01:03]} 34. Bd2 {[%clk 0:00:31]}  Ne6 {[%clk 0:01:03]} 35. Qe3 {[%clk 0:00:26]}  Qe7 {[%clk 0:00:56]} 36. Bc3 {[%clk 0:00:24]}  Qd7 {[%clk 0:00:46]} 37. Qd2 {[%clk 0:00:22]}  Qf7 {[%clk 0:00:42]} 38. Qf2 {[%clk 0:00:21]}  Qe7 {[%clk 0:00:41]} 39. Qf3 {[%clk 0:00:21]}  b4 {[%clk 0:00:36]} 40. Bb2 {[%clk 0:00:21]}  Qc5+ {[%clk 0:00:31]} 41. Kh2 {[%clk 0:00:18]}  Qxa5 {[%clk 0:00:17]} 42. Qxb7 {[%clk 0:00:18]}  Qc5 {[%clk 0:00:17]} 43. Qf3 {[%clk 0:00:13]}  Ng5 {[%clk 0:00:17]} 44. Qf4 {[%clk 0:00:11]}  Be6 {[%clk 0:00:16]} 45. Qd2 {[%clk 0:00:07]}  Bf5 {[%clk 0:00:14]} 46. Qd5+ {[%clk 0:00:05]}  Qxd5 {[%clk 0:00:13]} 47. Bxd5+ {[%clk 0:00:06]}  Be6 {[%clk 0:00:13]} 48. Bc6 {[%clk 0:00:04]}  Bf5 {[%clk 0:00:12]} 49. Ba4 {[%clk 0:00:04]}  Kf7 {[%clk 0:00:09]} 50. Kg3 {[%clk 0:00:03]}  Ke7 {[%clk 0:00:07]} 51. Bd4 {[%clk 0:00:03]}  Ne6 {[%clk 0:00:03]} 52. Bb6 {[%clk 0:00:03]}  g5 {[%clk 0:00:02]} 53. h4 {[%clk 0:00:03]}  Kf7 {[%clk 0:00:01]} 54. hxg5 {[%clk 0:00:03]}  hxg5 {[%clk 0:00:02]} 55. Bb3 {[%clk 0:00:03]}  Ke7 {[%clk 0:00:03]} 56. Ba5 {[%clk 0:00:03]}  Nd4 {[%clk 0:00:03]} 57. Bxb4+ {[%clk 0:00:03]}  Ke8 {[%clk 0:00:03]} 58. Ba4+ {[%clk 0:00:02]}  Kf7 {[%clk 0:00:04]} 59. Bc5 {[%clk 0:00:02]}  Nxc2 {[%clk 0:00:02]} 60. Bxc2 {[%clk 0:00:02]}  Bxc2 {[%clk 0:00:02]} 61. Kg4 {[%clk 0:00:02]}  Ke6 {[%clk 0:00:03]} 62. Bd6 {[%clk 0:00:03]}  Bf5+ {[%clk 0:00:03]} 63. Kg3 {[%clk 0:00:03]}  Bb1 {[%clk 0:00:03]} 64. Bb8 {[%clk 0:00:04]}  Bf5 {[%clk 0:00:04]} 65. Bc7 {[%clk 0:00:04]}  g4 {[%clk 0:00:05]} 66. Bb8 {[%clk 0:00:04]}  Be4 {[%clk 0:00:05]} 67. Bd6 {[%clk 0:00:05]}  Bf3 {[%clk 0:00:05]} 68. Bb8 {[%clk 0:00:05]}  Kd7 {[%clk 0:00:06]} 69. Bd6 {[%clk 0:00:05]}  Kc8 {[%clk 0:00:07]} 70. Ba3 {[%clk 0:00:06]}  Kd7 {[%clk 0:00:07]} 71. Bb2 {[%clk 0:00:06]}  Ke6 {[%clk 0:00:08]} 72. Bc3 {[%clk 0:00:07]}  Kd5 {[%clk 0:00:08]} 73. Ba1 {[%clk 0:00:08]}  Kc4 {[%clk 0:00:09]} 74. Bb2 {[%clk 0:00:08]}  Kb3 {[%clk 0:00:10]} 75. Bd4 {[%clk 0:00:08]}  Kc4 {[%clk 0:00:10]} 76. Be3 {[%clk 0:00:09]}  Kd5 {[%clk 0:00:11]} 77. Bf4 {[%clk 0:00:10]}  Ke6 {[%clk 0:00:12]} 78. Kh4 {[%clk 0:00:09]}  Kf5 {[%clk 0:00:13]} 79. Kg3 {[%clk 0:00:10]}  Bd5 {[%clk 0:00:13]} 80. e6 {[%clk 0:00:09]}  Bxe6 {[%clk 0:00:14]} 81. Be3 {[%clk 0:00:09]}  Ke4 {[%clk 0:00:15]} 82. Bf4 {[%clk 0:00:10]}  Kd3 {[%clk 0:00:16]} 83. Bg5 {[%clk 0:00:11]}  Ke4 {[%clk 0:00:16]} 84. Bf4 {[%clk 0:00:11]}  Kf5 {[%clk 0:00:17]} 85. Be3 {[%clk 0:00:11]}  Ke5 {[%clk 0:00:18]} 86. Bf4+ {[%clk 0:00:12]}  Kd4 {[%clk 0:00:19]} 87. Bg5 {[%clk 0:00:12]}  Kd3 {[%clk 0:00:20]} 88. Bf4 {[%clk 0:00:13]}  Ke4 {[%clk 0:00:21]} 89. Bg5 {[%clk 0:00:13]}  Kd4 {[%clk 0:00:22]} 90. Bf4 {[%clk 0:00:14]}  Bf5 {[%clk 0:00:22]} 91. Bg5 {[%clk 0:00:14]}  Kd5 {[%clk 0:00:23]} 92. Bf4 {[%clk 0:00:15]}  Ke4 {[%clk 0:00:24]} 93. Bg5 {[%clk 0:00:15]}  Be6 {[%clk 0:00:25]} 94. Bf4 {[%clk 0:00:16]} 1/2-1/2


[Site "https://www.chess.com"]

[Event "Titled Tuesday Blitz April 18 Early 2023"]
[White "Mekhitarian, Krikor Sevag"]
[Black "wqws"]
[WhiteFideId "2107660"]
[WhiteElo "2604"]
[BlackElo "2594"]
[Result "0-1"]
[Round "09"]
[TimeControl "180+2"]
[Date "2023.04.18"]
[WhiteClock "0:00:01"]
[BlackClock "0:00:31"]

1. Nf3 {[%clk 0:03:00]}  d5 {[%clk 0:02:58]} 2. c4 {[%clk 0:03:00]}  d4 {[%clk 0:02:56]} 3. b4 {[%clk 0:03:00]}  f6 {[%clk 0:02:56]} 4. Na3 {[%clk 0:02:56]}  e5 {[%clk 0:02:56]} 5. Nc2 {[%clk 0:02:56]}  c5 {[%clk 0:02:54]} 6. bxc5 {[%clk 0:02:56]}  Nc6 {[%clk 0:02:54]} 7. d3 {[%clk 0:02:56]}  Bxc5 {[%clk 0:02:54]} 8. g3 {[%clk 0:02:57]}  Be6 {[%clk 0:02:46]} 9. Bg2 {[%clk 0:02:55]}  Nge7 {[%clk 0:02:46]} 10. O-O {[%clk 0:02:55]}  O-O {[%clk 0:02:47]} 11. Nd2 {[%clk 0:02:56]}  f5 {[%clk 0:02:37]} 12. Rb1 {[%clk 0:02:56]}  Rb8 {[%clk 0:02:34]} 13. Nb3 {[%clk 0:02:51]}  Bb6 {[%clk 0:02:29]} 14. Ba3 {[%clk 0:02:51]}  Re8 {[%clk 0:02:24]} 15. Nb4 {[%clk 0:02:37]}  Bf7 {[%clk 0:02:15]} 16. Nxc6 {[%clk 0:02:30]}  Nxc6 {[%clk 0:02:15]} 17. Qd2 {[%clk 0:02:21]}  e4 {[%clk 0:02:10]} 18. Qf4 {[%clk 0:02:18]}  Be6 {[%clk 0:01:59]} 19. dxe4 {[%clk 0:02:08]}  Bc7 {[%clk 0:01:59]} 20. Qc1 {[%clk 0:02:00]}  fxe4 {[%clk 0:01:55]} 21. Bxe4 {[%clk 0:02:00]}  Bh3 {[%clk 0:01:54]} 22. Bf3 {[%clk 0:01:55]}  Ne5 {[%clk 0:01:42]} 23. Bd5+ {[%clk 0:01:55]}  Kh8 {[%clk 0:01:42]} 24. Nxd4 {[%clk 0:01:55]}  Bxf1 {[%clk 0:01:34]} 25. Kxf1 {[%clk 0:01:48]}  Bb6 {[%clk 0:01:23]} 26. Nf5 {[%clk 0:01:08]}  Qf6 {[%clk 0:01:13]} 27. Qf4 {[%clk 0:01:00]}  Ng6 {[%clk 0:00:59]} 28. Qg4 {[%clk 0:00:56]}  Ne5 {[%clk 0:00:55]} 29. Qe4 {[%clk 0:00:41]}  Nxc4 {[%clk 0:00:47]} 30. Qxc4 {[%clk 0:00:31]}  Qxf5 {[%clk 0:00:47]} 31. Rxb6 {[%clk 0:00:29]}  axb6 {[%clk 0:00:45]} 32. Bf3 {[%clk 0:00:26]}  Qh3+ {[%clk 0:00:43]} 33. Kg1 {[%clk 0:00:23]}  Red8 {[%clk 0:00:41]} 34. e3 {[%clk 0:00:20]}  Rbc8 {[%clk 0:00:41]} 35. Qe2 {[%clk 0:00:17]}  Qe6 {[%clk 0:00:35]} 36. Kg2 {[%clk 0:00:16]}  Qc4 {[%clk 0:00:35]} 37. Qb2 {[%clk 0:00:13]}  Qc2 {[%clk 0:00:34]} 38. Qe5 {[%clk 0:00:10]}  Rd2 {[%clk 0:00:33]} 39. Kh3 {[%clk 0:00:05]}  Rxf2 {[%clk 0:00:32]} 40. Kg4 {[%clk 0:00:02]}  Qg6+ {[%clk 0:00:31]} 41. Kf4 {[%clk 0:00:01]}  Qf7+ {[%clk 0:00:31]} 0-1


[Site "https://www.chess.com"]

[Event "Titled Tuesday Blitz April 18 Early 2023"]
[White "Manukyan, Sargis A."]
[Black "Eynullayev, Atilla"]
[WhiteFideId "13303970"]
[BlackFideId "13413570"]
[WhiteElo "2187"]
[BlackElo "2181"]
[Result "0-1"]
[Round "09"]
[TimeControl "180+2"]
[Date "2023.04.18"]
[WhiteClock "0:01:09"]
[BlackClock "0:00:06"]

1. d4 {[%clk 0:03:00]}  Nf6 {[%clk 0:02:58]} 2. c4 {[%clk 0:02:59]}  e6 {[%clk 0:02:59]} 3. Nc3 {[%clk 0:02:57]}  Bb4 {[%clk 0:02:58]} 4. a3 {[%clk 0:02:58]}  Bxc3+ {[%clk 0:02:58]} 5. bxc3 {[%clk 0:02:59]}  O-O {[%clk 0:02:59]} 6. e3 {[%clk 0:02:59]}  c5 {[%clk 0:02:58]} 7. Bd3 {[%clk 0:03:00]}  Nc6 {[%clk 0:02:58]} 8. Ne2 {[%clk 0:03:00]}  d6 {[%clk 0:02:59]} 9. O-O {[%clk 0:03:01]}  e5 {[%clk 0:02:59]} 10. d5 {[%clk 0:03:02]}  Ne7 {[%clk 0:02:59]} 11. Ng3 {[%clk 0:03:02]}  Bd7 {[%clk 0:02:53]} 12. f4 {[%clk 0:03:03]}  exf4 {[%clk 0:02:17]} 13. exf4 {[%clk 0:03:04]}  Qa5 {[%clk 0:01:52]} 14. Bd2 {[%clk 0:03:02]}  Ng6 {[%clk 0:01:46]} 15. Qc2 {[%clk 0:03:01]}  Rfe8 {[%clk 0:01:43]} 16. a4 {[%clk 0:03:00]}  Ng4 {[%clk 0:01:21]} 17. Rf3 {[%clk 0:02:47]}  Nf6 {[%clk 0:01:16]} 18. Rff1 {[%clk 0:02:41]}  Rab8 {[%clk 0:00:59]} 19. f5 {[%clk 0:02:39]}  Ne5 {[%clk 0:00:59]} 20. Bg5 {[%clk 0:02:40]}  Neg4 {[%clk 0:00:36]} 21. Qd2 {[%clk 0:02:32]}  h6 {[%clk 0:00:36]} 22. h3 {[%clk 0:02:20]}  hxg5 {[%clk 0:00:35]} 23. hxg4 {[%clk 0:02:20]}  Nxg4 {[%clk 0:00:24]} 24. Qxg5 {[%clk 0:02:19]}  Qxc3 {[%clk 0:00:24]} 25. Qxg4 {[%clk 0:02:11]}  Qxd3 {[%clk 0:00:25]} 26. Rad1 {[%clk 0:02:08]}  Qe3+ {[%clk 0:00:25]} 27. Rf2 {[%clk 0:02:06]}  Bxa4 {[%clk 0:00:22]} 28. Nh5 {[%clk 0:02:03]}  Qh6 {[%clk 0:00:13]} 29. Rd3 {[%clk 0:01:53]}  Re1+ {[%clk 0:00:13]} 30. Kh2 {[%clk 0:01:53]}  Rbe8 {[%clk 0:00:09]} 31. Rh3 {[%clk 0:01:54]}  Bd1 {[%clk 0:00:10]} 32. Rff3 {[%clk 0:01:34]}  Bxf3 {[%clk 0:00:10]} 33. Qxf3 {[%clk 0:01:35]}  R1e3 {[%clk 0:00:10]} 34. Qg4 {[%clk 0:01:25]}  Rxh3+ {[%clk 0:00:10]} 35. Qxh3 {[%clk 0:01:19]}  Re3 {[%clk 0:00:07]} 36. Nf6+ {[%clk 0:01:13]}  Kf8 {[%clk 0:00:05]} 37. Nh7+ {[%clk 0:01:11]}  Ke8 {[%clk 0:00:05]} 38. Nf6+ {[%clk 0:01:10]}  Kd8 {[%clk 0:00:04]} 39. Qxh6 {[%clk 0:01:06]}  gxh6 {[%clk 0:00:05]} 40. Ng4 {[%clk 0:01:05]}  Rc3 {[%clk 0:00:05]} 41. Nxh6 {[%clk 0:01:06]}  Ke7 {[%clk 0:00:04]} 42. Ng8+ {[%clk 0:01:05]}  Kf8 {[%clk 0:00:04]} 43. Nf6 {[%clk 0:01:05]}  a5 {[%clk 0:00:05]} 44. g4 {[%clk 0:01:06]}  a4 {[%clk 0:00:05]} 45. g5 {[%clk 0:01:06]}  a3 {[%clk 0:00:06]} 46. g6 {[%clk 0:01:06]}  fxg6 {[%clk 0:00:06]} 47. fxg6 {[%clk 0:01:07]}  a2 {[%clk 0:00:06]} 48. g7+ {[%clk 0:01:07]}  Kxg7 {[%clk 0:00:06]} 49. Ne8+ {[%clk 0:01:08]}  Kf8 {[%clk 0:00:06]} 50. Nxd6 {[%clk 0:01:09]}  a1=Q {[%clk 0:00:06]} 0-1


[Site "https://www.chess.com"]